Cogmind - Beta 12 @@@ ROGUE MODE // 2023.11.10 @ 01:07:49 Player: FrostySpirit Result: Destroyed by D-53 Grenadier with Mini Grenade Launcher Performance ------------- Evolutions (0) 0 Regions Visited (2) 400 Robots Destroyed (8) 40 Value Destroyed (110) 110 Prototype IDs (0) 0 Alien Tech Used (0) 0 Bonus (0) 0 TOTAL SCORE: 550 Bonus ------- None Cogmind --------- Core Integrity 0/250 Matter 280/300 Energy 73/100 System Corruption 0% Temperature Cool (0) Movement Flying (37) Location -10/Mines Parts ------- > --- POWER (1) -------- (None) > --- PROPULSION (2) --- Flight Unit Flight Unit > --- UTILITY (2) ------ Small Storage Unit > --- WEAPON (2) ------- (None) > --- INVENTORY (8) ---- Light Ion Engine Flight Unit ECM Suite Propulsion Shielding EM Pulse Gun Grenade Launcher Peak State ------------ > --- POWER ------------ Light Ion Engine > --- PROPULSION ------- Wheel Compact Wheel > --- UTILITY ---------- Small Storage Unit Light Armor Plating > --- WEAPON ----------- EM Pulse Gun EM Pulse Gun > --- INVENTORY -------- Light Ion Engine Aluminum Leg Aluminum Leg Flight Unit Flight Unit Flight Unit EM Pulse Gun Grenade Launcher [Rating: 7] Favorites ----------- Power Light Ion Engine Engine Light Ion Engine Propulsion Compact Wheel Wheel Compact Wheel Hover Unit Hover Unit Flight Unit Flight Unit Utility Small Storage Unit Storage Small Storage Unit Protection Light Armor Plating Weapon EM Pulse Gun Energy Gun EM Pulse Gun Special Weapon Welding Torch Build | -11 -10 -10 ------- Run | Jun Mat Min Slots Evolved . | . . . Power . | . . . Propulsion . | . . . Utility . | . . . Weapon . | . . . Parts Attached 13 | 6 2 5 Power 2 | 1 1 . Engine 2 | 1 1 . Core . | . . . Reactor . | . . . Propulsion 5 | 2 . 3 Treads . | . . . Leg . | . . . Wheel 2 | 2 . . Hover 1 | . . 1 Flight 2 | . . 2 Utility 2 | 1 1 . Device . | . . . Storage 1 | 1 . . Processor . | . . . Hackware . | . . . Protection 1 | . 1 . Artifact . | . . . Weapon 4 | 2 . 2 Energy Gun 3 | 2 . 1 Energy Cannon . | . . . Ballistic Gun . | . . . Ballistic Cannon . | . . . Launcher . | . . . Special Weapon 1 | . . 1 Impact Weapon . | . . . Slashing Weapon . | . . . Piercing Weapon . | . . . Special Melee Weapon . | . . . Unidentified Prototypes . | . . . Parts Lost 8 | . 2 6 Power 2 | . 1 1 Propulsion 3 | . 1 2 Utility 1 | . . 1 Weapon 2 | . . 2 Highest Loss Streak 6 | . 1 6 To Critical Strikes . | . . . Average Slot Usage (%) 93 | . 92 95 Engine 13 | . 12 14 Wheel 20 | . 25 13 Hover 4 | . . 13 Storage 14 | . 14 14 Protection 11 | . 10 14 Energy Gun 26 | . 28 24 Naked Turns . | . . . Heaviest Build 15 | 12 15 15 Greatest Support 26 | 26 26 16 Greatest Overweight (x) 2 | . . 2 Average Overweight (x) . | . . . Largest Inventory Capacity 8 | 8 8 8 Average Capacity 7 | 7 8 8 Most Carried 8 | 6 8 8 Average Carried 6 | 2 7 7 Final Capacity 8 | 8 8 8 Final Carried 8 | 6 8 6 Class Distribution -------------------- 100% | Mutant Dominant Class ---------------- Mutant | -10/Materials Mutant | -10/Mines Resources | -11 -10 -10 ----------- Run | Jun Mat Min Matter Collected 298 | 205 70 23 Remotely . | . . . Salvage Created 186 | . 163 23 Parts 16 | . 16 . Haulers Intercepted . | . . . Recyclers Shooed 1 | . 1 . Parts Field Recycled . | . . . Retrieved Matter . | . . . Parts Self-Destructed . | . . . Prevented . | . . . Kills | -11 -10 -10 ------- Run | Jun Mat Min Combat Hostiles Destroyed 7 | . 7 . Guns 5 | . 5 . AOE 2 | . 2 . Classes Destroyed 3 | . 3 . Watcher 1 | . 1 . Swarmer 6 | . 6 . Grunt 1 | . 1 . Best Kill Streak 4 | . 4 . Combat Bots Only 4 | . 4 . Max Kills in Single Turn 1 | . 1 . Gunslinging . | . . . Exploded 1 | . 1 . Melee . | . . . Uniques/NPCs Destroyed . | . . . Combat | -11 -10 -10 -------- Run | Jun Mat Min Damage Taken 634 | . 208 426 Core 251 | . 43 208 Absorbed by Shields . | . . . Core Remaining (%) 100 | 100 . . Volleys Fired 16 | . 13 3 Largest 2 | . 2 1 Hottest 80 | . 80 20 Shots Fired 29 | . 26 3 Gun 26 | . 26 . Cannon . | . . . Launcher . | . . . Special 3 | . . 3 Kinetic . | . . . Thermal 3 | . . 3 Explosive . | . . . Electromagnetic 26 | . 26 . Robot Hit Streak 8 | . 7 8 Robot Miss Streak 5 | . 5 . Penetration Max . | . . . Secondary Targets . | . . . Shots Hit Robots 20 | . 17 3 Core Hits 9 | . 8 1 Critical Kills . | . . . Critical Parts Destroyed . | . . . Critical Strikes . | . . . Melee Attacks . | . . . Impact . | . . . Slashing . | . . . Piercing . | . . . Sneak Attacks . | . . . Combat Hostiles . | . . . Follow-up Attacks . | . . . Damage Inflicted 295 | . 285 10 Guns 202 | . 202 . Cannons . | . . . Explosions 83 | . 83 . Melee . | . . . Ramming . | . . . Kinetic . | . . . Thermal 93 | . 83 10 Explosive . | . . . Electromagnetic 202 | . 202 . Impact . | . . . Slashing . | . . . Piercing . | . . . Highest Corruption . | . . . Average Corruption . | . . . Corruption Purged . | . . . Corruption Blocked . | . . . Overload Shots . | . . . Overflow Damage 8 | . 8 . Projectiles . | . . . Explosions 8 | . 8 . Melee . | . . . Knockbacks . | . . . Impact . | . . . Kinetic . | . . . Secondary . | . . . Self-Inflicted Damage 30 | . 30 . Shots 1 | . 1 . Rammed 1 | . 1 . Targets Rammed 1 | . 1 . Kicked . | . . . Crushed . | . . . Highest Temperature 142 | . 142 . Average Temperature 52 | . 52 . Received Heat Transfer 18 | . 18 . Siege Activations . | . . . Robots Corrupted . | . . . Combat Hostiles . | . . . Parts Fried 1 | . 1 . Impact Corruptions . | . . . Robots Melted . | . . . Combat Hostiles . | . . . Parts Melted . | . . . Heat Transferred 225 | . 150 75 Parts Sabotaged . | . . . Parts Stolen . | . . . Parts Stripped . | . . . Power Chain Reactions 2 | . 2 . Missiles Intercepted . | . . . Alert | -11 -10 -10 ------- Run | Jun Mat Min Peak Influence 217 | . 217 89 Initial 84 | . . 84 Average 79 | . 100 84 Maximum Alert Level 1 | . 1 . Low Security (%) 90 | 100 82 100 Level 1 9 | . 17 . Level 2 . | . . . Level 3 . | . . . Level 4 . | . . . Level 5 . | . . . High Security . | . . . Max Security . | . . . Squads Dispatched 2 | . 2 . Investigation 1 | . 1 . Extermination . | . . . Reinforcement 1 | . 1 . Assault . | . . . Garrison . | . . . Intercept . | . . . Searches Triggered . | . . . Construction Impeded . | . . . Haulers Reinforced . | . . . Active Scanning Responses . | . . . Cargo Convoy Interrupts . | . . . Stealth | -11 -10 -10 --------- Run | Jun Mat Min Distress Signals 1 | . 1 . Communications Jammed . | . . . Distress Signals . | . . . Times Spotted 13 | . 11 2 Peak Tracking Total 6 | . 6 2 Tactical Retreats . | . . . Traps | -11 -10 -10 ------- Run | Jun Mat Min Traps Triggered 1 | . 1 . Indirectly . | . . . Trap Hack Attempts . | . . . Triggered . | . . . Disarmed . | . . . Reprogrammed . | . . . Reused . | . . . Traps Extracted . | . . . Installed . | . . . Triggered . | . . . Machines | -11 -10 -10 ---------- Run | Jun Mat Min Machines Disabled . | . . . Max in Single Turn . | . . . Machines Repaired . | . . . Machines Sabotaged . | . . . Overloaded Fab Kills . | . . . Hacking | -11 -10 -10 --------- Run | Jun Mat Min Machines Accessed 3 | . 3 . Terminals 3 | . 3 . Fabricators . | . . . Repair Stations . | . . . Recycling Units . | . . . Scanalyzers . | . . . Garrison Access . | . . . Total Hacks 7 | . 7 . Successful 3 | . 3 . Failed 4 | . 4 . Catastrophic 2 | . 2 . Database Lockouts . | . . . Manual 7 | . 7 . Terminals 7 | . 7 . Fabricators . | . . . Repair Stations . | . . . Recycling Units . | . . . Scanalyzers . | . . . Garrison Access . | . . . Terminal Hacks . | . . . Fabricator Hacks . | . . . Repair Station Hacks . | . . . Recycling Unit Hacks . | . . . Scanalyzer . | . . . Garrison Access Hacks . | . . . Unauthorized Hacks 3 | . 3 . Terminals 3 | . 3 . Track 3 | . 3 . Fabricators . | . . . Repair Stations . | . . . Recycling Units . | . . . Scanalyzers . | . . . Garrison Access . | . . . Data Cores Recovered . | . . . Used . | . . . Hacking Detections 3 | . 3 . Full Trace Events . | . . . Feedback Events . | . . . Feedback Blocked . | . . . Robot Schematics Acquired . | . . . Robots Built . | . . . Authchips . | . . . Time . | . . . Total Robot Build Rating . | . . . Part Schematics Acquired . | . . . Parts Built . | . . . Authchips . | . . . Time . | . . . Total Part Build Rating . | . . . Parts Repaired . | . . . Time . | . . . Parts Recycled . | . . . Recycled Matter . | . . . Retrieved Matter . | . . . Retrieved Components . | . . . Parts Scanalyzed . | . . . Part Schematics Acquired . | . . . Parts Damaged . | . . . Bothacking | -11 -10 -10 ------------ Run | Jun Mat Min Used RIF Installer . | . . . Robots Hacked . | . . . Non-combat . | . . . Combat . | . . . Robot Hacks Applied . | . . . Relay Couplers Released . | . . . Fabnet Peak Effective % . | . . . Robots Rewired . | . . . Allies Hacked . | . . . Hacks Repelled . | . . . Allies | -11 -10 -10 -------- Run | Jun Mat Min Total Allies . | . . . Largest Group . | . . . Highest-Rated Group . | . . . Highest-Rated Ally . | . . . Total Orders . | . . . Ally Attacks . | . . . Total Damage . | . . . Kills . | . . . Allies Corrupted . | . . . Allies Melted . | . . . Intel | -11 -10 -10 ------- Run | Jun Mat Min Robot Analysis Total . | . . . Derelict Logs Recovered 1 | . . 1 Drone Launches . | . . . Drone Recoveries . | . . . Exploration | -11 -10 -10 ------------- Run | Jun Mat Min Turns Passed 448 | 72 235 141 Spaces Moved 387 | 66 198 123 Core 5 | 4 . 1 Treads . | . . . Legs . | . . . Wheels 377 | 62 198 117 Hover 5 | . . 5 Flight . | . . . Fastest Speed 50 | 50 90 100 Average Speed 94 | 87 91 102 Slowest Speed 180 | 90 100 180 Overloaded Moves . | . . . Propulsion Burnouts . | . . . Robots Hopped . | . . . Cave-ins Triggered . | . . . Exploration Rate (%) 28 | 4 45 35 Regions Visited 2 Branch Regions 1 Pre-discovered Areas . | . . . Known Exits Taken . | . . . Unknown Exits Taken 2 | 1 1 . Scrap Searched . | . . . Spaces Dug . | . . . Terrain Destroyed 10 | . 10 . Melee . | . . . Projectile . | . . . AOE 10 | . 10 . Terrain Rammed . | . . . Walls Destroyed . | . . . Machines Disabled . | . . . Actions | -11 -10 -10 --------- Run | Jun Mat Min Total 438 | 77 227 134 Wait 1 | . . 1 Move 386 | 65 198 123 Hop . | . . . Pick Up 14 | 6 8 . Fast Attach 11 | 6 2 3 Attach 2 | . . 2 Detach . | . . . Swap . | . . . Drop 8 | . 6 2 Fire 16 | . 13 3 Melee . | . . . Ram . | . . . Kick . | . . . Crush . | . . . Escape Stasis . | . . . Rewire . | . . . Trap . | . . . Miscellaneous . | . . . Route ------- -11/Junkyard -10/Materials -10/Mines History --------- Turn | Location | Event 36 | -11/Junkyard | Discovered new exit (range 14) 73 | -11/Junkyard | Entered Materials 299 | -10/Materials | Discovered new exit (range 7) 303 | -10/Materials | Build established: Mutant 308 | -10/Materials | Entered Mines 395 | -10/Mines | Learned Materials security intel 420 | -10/Mines | Assembled infested the area 447 | -10/Mines | Core integrity fell below 50% 449 | -10/Mines | Destroyed by D-53 Grenadier with Mini Grenade Launcher Last Messages --------------- 00373_ Acquired 3 matter. 00395_ Acquired derelict log, extracted data. Data stored: Materials security intel. 00420_ ALERT: Infestation in the mines, dispatching Demolisher response squad. 00433_ K-01 Serf collects debris. 00437_ C-30 ARC bursts open, deploying its payload. 00437_ D-53 Grenadier unfolds itself. 00437_ Com. Wheel destroyed. 00438_ U-05 Engineer lays Concrete. 00441_ The unstable cave ceiling collapses. 00441_ U-05 Engineer lays Concrete. 00442_ Lgt. Armor Plating destroyed. 00443_ U-05 Engineer lays Concrete. 00443_ EM Pulse Gun destroyed. 00444_ U-05 Engineer lays Concrete. 00444_ Hover Unit destroyed. 00444_ Lgt. Ion Engine destroyed. 00444_ U-05 Engineer destroyed. 00445_ U-05 Engineer lays Concrete. Map ----- +----------------------------------------------------+ | | | | | | | | | | | | | | | | | ?????????????????????????????????????????????????? | | ???????????????#####?????????????????????????????? | | #######???????## ###???????????????????????????? | | # ######### ##??????????????????????????? | | ! #?###??????????????????????? | | | #? #?????????????????????? | | ! ## ##? ?????????????????????? | | #### ##? ?????????????????????? | | ##??#### ### #? ?????????????????????? | | ##??????### #?## #? ??###????????????????? | | ##?????????# #??## ##?# #?# ##???????????????? | | #??????????# #???## #### ## #???????????????? | | #??????????# #????# k #???????????????? | | ######?????# #????? #???????????????? | | ####### ###???## #???????????????? | | ##### ##??# #???????????????? | | ????# ##?# #???????????????? | | ????######### #?# @ ##??????????????? | | ????????????## #?# #??????????????? | | ?????????????## ### u ######?????????? | | ?????????####?## ## d % ????????? | | ????????## ##?# # d ######?????????? | | ????????# #?# #??????????????? | | ????????# #?# #??????????????? | | ?????????# ### #??????????????? | | ????????## ##??????????????? | | ???????## """ ####???????????????? | | ??????## """ #??????????????????? | | ?????## """ #?????????????????? | | ????## ## ##?????????????????? | | ????# ##?###??????????????????? | | ????# #### ##???????????????????????? | | ????## ####??####????????????????????????? | | ?????## ##?????????????????????????????????? | | ??????# #??????????????????????????????????? | | ??????## ##??????????????????????????????????? | | ???????## ##???????????????????????????????????? | | ????????# ###????????????????????????????????????? | | ???????? #??????????????????????????????????????? | | ??????? #??????????????????????????????????????? | | ??????## #??????????????????????????????????????? | | ???????# #??????????????????????????????????????? | +----------------------------------------------------+ Best States ------------- Heat Dissipation 25 Energy Generation 10 Energy Capacity 125 Matter Stores 300 Matter Capacity 300 Sight Range 16 Terrain Scan Density 10 Armor Coverage 150 Evasion (%) 42 Item Schematics ----------------- None Robot Schematics ------------------ None Fabricated ------------ Nothing Alien Tech Used ----------------- None Achievements -------------- None Challenges ------------ None Game ------ Seed TitaniumResetStorage Manual? 0 Play Time 00:08:23 Cumulative 32.2 hours Start 2023.11.10 @ 01:01:04 End 2023.11.10 @ 01:07:49 Sessions 1 Manual Loads 0 Difficulty Rogue Special Mode None Game No. 55 Rogue 55 Adventurer 0 Explorer 0 Win Type - Total 0 Types 0/0/0/0/0/0/0/0/0 Lore% 24 Gallery% 38 Achievement% 26 Wizard Run 0 Options --------- ASCII 0 Keyboard 1 Movement Numpad Keybinds 0 Fullscreen 1 Font 18/TerminusBold Map View 76x50 Tactical HUD 1 Map Filters NONE Filters NONE Steam 1 RUN: 96d43f89-4a50-4fae-9de6-d78b41a12f47